bitfinex-derivatives/quotes_SOLF0:USTF0_20250109
["timestamp","ask_amount","ask_price","bid_price","bid_amount"]
[1736388025774,13.42703245,197.99,197.78,7.8337213]
[1736388025981,0.92369722,197.98,197.8,7.8337213]
[1736388026179,7.8337213,197.87,197.8,7.8337213]
[1736388026780,7.8337213,197.87,197.83,2.5278]
[1736388026984,5.4072,197.89,197.8,7.8337213]
[1736388026985,7.8337213,197.85,197.8,7.8337213]
[1736388027274,7.8337213,197.85,197.8,2.5283]
[1736388027586,7.8337213,197.84,197.78,9.3461213]
[1736388027882,2.88,197.83,197.78,1.5124]
[1736388028087,7.8337213,197.82,197.77,1.5025]
[1736388028483,10.3618213,197.82,197.77,4.0312]
[1736388029785,10.3618213,197.82,197.77,1.5025]
[1736388029993,10.3618213,197.82,197.78,2.5285]
[1736388030391,7.8337213,197.8,197.76,2.5287]
[1736388031095,7.8337213,197.8,197.77,2.5287]
[1736388032206,7.8337213,197.8,197.75,2.5288]
[1736388032207,10.3620213,197.8,197.75,2.5288]
[1736388032386,7.8337213,197.8,197.74,7.8337213]
[1736388034595,7.8337213,197.8,197.76,2.5287]
[1736388036090,10.3620213,197.8,197.76,2.5287]
[1736388041291,10.3620213,197.8,197.72,9.3833213]
[1736388041500,7.8337213,197.78,197.72,1.5496]
[1736388041794,2.88,197.77,197.74,2.529]
[1736388046294,7.8337213,197.76,197.7,1.5559]
[1736388047496,7.8337213,197.76,197.72,2.5292]
[1736388047696,7.8337213,197.76,197.71,7.8337213]
[1736388048097,7.8337213,197.76,197.73,2.5291]
[1736388048697,7.8337213,197.76,197.71,7.8337213]
[1736388048901,7.8337213,197.76,197.74,2.5291]
[1736388049597,7.8337213,197.76,197.73,2.5292]
[1736388053902,10.3626213,197.76,197.72,2.5293]
[1736388054203,7.8337213,197.76,197.7,1.5559]
[1736388054400,2.88,197.77,197.7,1.5559]
[1736388054401,7.8337213,197.74,197.7,1.5559]
[1736388055197,7.8337213,197.74,197.71,2.5294]
[1736388056304,7.8337213,197.74,197.72,2.5293]
[1736388060298,2.529,197.75,197.72,2.5293]
[1736388064302,78.9,197.86,197.7,1.5559]
[1736388064503,7.8337213,197.79,197.71,7.8337213]
[1736388064716,7.8337213,197.81,197.73,7.8337213]
[1736388064912,7.8337213,197.81,197.79,2.5284]
[1736388065115,7.8337213,197.83,197.75,7.8337213]
[1736388066710,7.8337213,197.83,197.77,7.8337213]
[1736388067214,10.3614213,197.85,197.77,7.8337213]
[1736388067413,10.3614213,197.85,197.78,1.5959]
[1736388067811,4.88770071,197.94,197.79,7.8337213]
[1736388068008,7.8337213,197.87,197.79,7.8337213]
[1736388069123,10.3611213,197.87,197.82,2.528]
[1736388069813,7.8337213,197.87,197.82,2.528]
[1736388070020,10.3609213,197.89,197.81,7.8337213]
[1736388070219,7.8337213,197.89,197.82,1.4768]
[1736388070618,7.8337213,197.89,197.84,2.5278]
[1736388071009,7.8337213,197.87,197.84,2.5278]
[1736388072022,7.8337213,197.87,197.82,1.4768]
[1736388072224,7.8337213,197.85,197.82,1.4768]
[1736388072418,7.8337213,197.85,197.78,12.3096213]
[1736388072919,7.8337213,197.85,197.82,2.528]
[1736388073619,7.8337213,197.87,197.8,7.8337213]
[1736388073823,7.8337213,197.89,197.84,7.8337213]
[1736388074528,7.8337213,197.89,197.85,2.5276]
[1736388074720,7.8337213,197.89,197.84,7.8337213]
[1736388074721,7.8337213,197.89,197.84,9.2793213]
[1736388075727,7.8337213,197.91,197.84,9.2793213]
[1736388076227,7.8337213,197.91,197.87,2.5273]
[1736388076614,7.8337213,197.89,197.87,2.5273]
[1736388076813,7.8337213,197.91,197.88,2.5273]
[1736388077014,7.8337213,197.91,197.86,7.8337213]
[1736388077518,4.88770071,197.94,197.86,7.8337213]
[1736388077723,4.88770071,197.94,197.88,7.8337213]
[1736388078028,7.8337213,197.93,197.89,2.5271]
[1736388079027,7.8337213,197.93,197.9,2.527]
[1736388080020,4.88770071,197.94,197.91,2.5269]
[1736388080227,7.8337213,197.95,197.91,2.5269]
[1736388080728,7.8337213,197.95,197.88,7.8337213]
[1736388080729,7.8337213,197.95,197.93,2.5266]
[1736388080928,78.9,197.98,197.9,7.8337213]
[1736388081125,7.8337213,197.99,197.92,7.8337213]
[1736388081327,7.8337213,197.99,197.95,2.5264]
[1736388082332,7.8337213,197.99,197.94,7.8337213]
[1736388082722,7.8337213,197.99,197.93,1.5272]
[1736388083125,7.8337213,197.99,197.95,2.5263]
[1736388083428,7.8337213,197.99,197.93,1.5272]
[1736388084027,7.8337213,197.97,197.93,1.5272]
[1736388084225,7.8337213,197.97,197.94,2.5265]
[1736388084431,7.8337213,197.95,197.88,1.5272]
[1736388084735,7.8337213,197.93,197.88,4.0544]
[1736388084929,2.88,197.92,197.88,1.5272]
[1736388085233,7.8337213,197.91,197.87,2.5274]
[1736388085627,7.8337213,197.89,197.86,1.4517]
[1736388087533,4.88508991,198.06,197.86,1.4517]
[1736388087727,7.8337213,197.93,197.89,2.5271]
[1736388088030,2.88,197.92,197.89,2.5271]
[1736388088434,7.8337213,197.93,197.89,2.5271]
[1736388088831,2.88,197.92,197.89,2.5271]
[1736388090224,2.88,197.92,197.86,9.2854213]
[1736388090431,2.88,197.92,197.91,2.5269]
[1736388091033,7.8337213,197.95,197.92,2.5267]
[1736388091535,7.8337213,197.95,197.91,2.5269]
[1736388091739,7.8337213,197.95,197.88,7.8337213]
[1736388091932,7.8337213,197.95,197.9,7.8337213]
[1736388092249,10.7137213,197.97,197.9,7.8337213]
[1736388093135,7.8337213,197.97,197.9,7.8337213]
[1736388093333,7.8337213,197.99,197.92,7.8337213]
[1736388093632,1.00984599,198.05,197.97,2.526]
[1736388093633,10.7137213,198.01,197.97,2.526]
[1736388093832,10.7137213,198.01,197.94,7.8337213]
[1736388094230,7.8337213,197.99,197.96,2.5263]
[1736388094436,2.88,198.02,197.92,7.8337213]
[1736388094635,7.8337213,197.99,197.92,7.8337213]
[1736388095036,7.8337213,197.99,197.94,2.5265]
[1736388095233,7.8337213,197.99,197.92,7.8337213]
[1736388095635,7.8337213,197.99,197.93,1.55]
[1736388096643,7.8337213,197.99,197.96,2.5262]
[1736388097139,1.00984599,198.05,197.94,7.8337213]
[1736388097339,7.8337213,198.04,197.98,7.8337213]
[1736388097730,7.8337213,198.04,197.96,7.8337213]
[1736388097929,7.8337213,198.02,197.96,7.8337213]
[1736388098742,7.8337213,198.0,197.93,1.55]
[1736388098943,7.8337213,198.0,197.93,9.3837213]
[1736388099237,7.8337213,197.98,197.94,2.5265]
[1736388099443,2.5258,198.0,197.94,2.5265]
[1736388099643,15.1334061,198.01,197.93,1.55]
[1736388100844,17.6591061,198.01,197.96,2.5262]
[1736388101146,15.1334061,198.01,197.93,1.55]
[1736388102748,15.1334061,198.01,197.95,2.5264]
[1736388103046,2.5258,198.0,197.95,2.5264]
[1736388103441,2.5258,198.0,197.96,2.5262]
[1736388104148,17.6590061,198.01,197.97,2.5261]
[1736388110441,2.88,198.01,197.99,2.5259]
[1736388110645,2.88,198.03,197.93,1.55]
[1736388110846,4.88508991,198.06,197.94,15.1334061]
[1736388111047,2.88,198.05,197.94,15.1334061]
[1736388111249,5.4051,198.05,197.97,2.5261]
[1736388111450,5.4051,198.05,197.94,15.1334061]
[1736388111643,2.88,198.05,197.94,15.1334061]
[1736388112544,2.5256,198.03,197.97,2.5262]
[1736388112748,12.2534061,198.04,197.94,2.88]
[1736388113250,2.5256,198.02,197.97,2.5261]
[1736388113447,2.5256,198.02,197.94,2.88]
[1736388114248,12.2534061,198.04,197.94,2.88]
[1736388114443,2.5257,198.01,197.94,2.88]
[1736388114842,2.5257,198.01,197.96,2.5262]
[1736388116651,2.5257,198.01,197.97,2.5262]
[1736388116850,2.5258,198.0,197.93,1.55]
[1736388117249,5.4058,198.0,197.95,2.5264]
[1736388117748,5.4058,198.0,197.96,2.5263]
[1736388119254,7.84246967,197.98,197.96,2.5263]
[1736388119749,10.36866967,197.98,197.93,2.5266]
[1736388120053,7.84246967,197.94,197.89,3.1532]
[1736388120452,7.84246967,197.96,197.94,2.5266]
[1736388121050,7.84246967,197.96,197.95,2.5265]
[1736388121251,7.84246967,197.98,197.9,7.84246967]
[1736388121544,7.84246967,197.96,197.9,7.84246967]
[1736388121748,7.84246967,197.94,197.89,3.1532]
[1736388122551,7.84246967,197.94,197.89,1.7052]
[1736388122751,10.76246967,197.94,197.89,1.7052]
[1736388123152,7.84246967,197.92,197.89,1.7052]
[1736388123354,7.84246967,197.92,197.89,0.1874]
[1736388127556,7.84246967,197.9,197.89,0.1874]
[1736388128354,7.84246967,197.92,197.89,0.1874]
[1736388130258,7.84246967,197.9,197.89,0.1874]
[1736388130458,7.84246967,197.92,197.89,0.1874]
[1736388130660,2.5264,197.96,197.9,2.5271]
[1736388130863,7.84246967,197.96,197.9,7.84246967]
[1736388131861,7.84246967,197.96,197.91,2.5269]
[1736388132060,7.84246967,197.96,197.9,7.84246967]
[1736388132658,2.92,197.97,197.9,7.84246967]
[1736388132967,10.36856967,197.98,197.92,7.84246967]
[1736388133263,7.84246967,197.98,197.92,7.84246967]
[1736388134058,7.84246967,197.98,197.93,2.5267]
[1736388134655,10.36866967,197.98,197.93,2.5267]
[1736388135961,13.28866967,197.98,197.93,2.5267]
[1736388136661,10.76246967,197.98,197.94,2.5265]
[1736388137263,13.28856967,197.98,197.94,2.5265]
[1736388139066,7.84246967,197.96,197.93,2.5267]
[1736388144767,2.9,197.97,197.95,2.5265]
[1736388145162,2.9,197.97,197.92,7.84246967]
[1736388145363,2.9,197.97,197.96,2.5263]
[1736388146970,10.36836967,198.0,197.96,2.5263]
[1736388147171,7.84246967,197.98,197.96,2.5263]
[1736388150461,7.84246967,197.98,197.93,1.5356]
[1736388150661,7.84246967,197.98,197.95,2.5265]
[1736388153874,7.84246967,197.98,197.93,1.5356]
[1736388154068,7.84246967,197.98,197.96,2.5263]
[1736388154470,7.84246967,197.98,197.93,1.5356]
[1736388156071,7.84246967,197.98,197.95,2.5265]
[1736388156573,10.36856967,197.98,197.94,2.5266]
[1736388161380,2.526,197.99,197.95,2.5264]
[1736388163877,7.84246967,197.98,197.93,1.5356]
[1736388164076,10.36846967,197.99,197.95,2.5264]
[1736388164685,7.84246967,197.99,197.93,4.0623]
[1736388166084,2.5262,197.97,197.93,2.5267]
[1736388166287,10.36866967,197.97,197.93,2.5267]
[1736388169686,7.84246967,198.0,197.97,2.5262]
[1736388169888,7.84246967,198.0,197.93,7.84246967]
[1736388170883,7.84246967,198.0,197.97,2.5262]
[1736388171378,10.36836967,198.0,197.97,2.5262]
[1736388171989,10.36836967,198.0,197.93,7.84246967]
[1736388171990,7.84246967,198.0,197.92,1.5302]
[1736388172195,7.84246967,197.98,197.91,1.5599]
[1736388172393,7.84246967,197.96,197.91,1.5599]
[1736388172892,7.84246967,197.96,197.92,2.5267]
[1736388172893,10.36896967,197.96,197.92,2.5267]
[1736388173292,7.84246967,197.96,197.91,1.5599]
[1736388173491,10.36916967,197.94,197.9,2.5271]
[1736388177593,7.84246967,197.94,197.91,2.527]
[1736388179493,2.5263,197.97,197.93,2.5267]
[1736388179693,7.84246967,197.99,197.92,7.84246967]
[1736388179889,7.84246967,197.99,197.93,1.5657]
[1736388180199,8.40652561,198.05,197.93,1.5657]
[1736388180395,7.84246967,198.0,197.93,1.5657]
[1736388180596,7.84246967,197.98,197.93,1.5657]
[1736388180901,7.84246967,197.98,197.95,2.5264]
[1736388181090,7.84246967,197.98,197.93,1.5657]
[1736388181290,10.36836967,198.0,197.93,9.40816967]
[1736388182098,10.36836967,198.0,197.96,2.5263]
[1736388183003,2.9,198.04,197.96,2.5263]
[1736388183299,7.84246967,198.02,197.95,7.84246967]
[1736388184003,7.84246967,198.02,197.95,9.29396967]
[1736388184195,7.84246967,198.02,197.98,2.5261]
[1736388185903,7.84246967,198.02,197.95,9.29396967]
[1736388186105,7.84246967,198.02,197.99,2.5259]
[1736388189804,7.84246967,198.02,198.0,2.5258]
[1736388193107,10.36776967,198.04,198.0,2.5258]
[1736388201814,2.5255,198.03,198.0,2.5258]
[1736388206220,2.5255,198.03,197.99,2.5259]
[1736388207619,2.5256,198.02,197.98,2.5261]
[1736388207918,7.84246967,198.02,197.95,1.4515]
[1736388208316,2.5259,198.0,197.97,2.5262]
[1736388208517,7.84246967,198.02,197.97,2.5262]
[1736388209120,2.5257,198.01,197.97,2.5262]
[1736388209721,2.5257,198.01,197.98,2.5261]
[1736388210222,10.36806967,198.02,197.95,9.29396967]
[1736388211122,2.5258,198.01,197.97,2.5262]
[1736388211521,7.84246967,198.0,197.97,2.5262]
[1736388213628,10.36836967,198.0,197.97,2.5262]
[1736388213828,2.88,197.99,197.95,3.9779]
[1736388214326,2.88,197.99,197.95,2.5264]
[1736388215226,10.36856967,197.98,197.95,2.5264]
[1736388216126,7.84246967,197.98,197.95,2.5264]
[1736388216327,5.406,197.99,197.95,2.5264]
[1736388219428,2.88,197.99,197.96,2.5263]
[1736388220533,13.24846967,197.99,197.95,2.5264]
[1736388221336,13.24846967,197.99,197.93,1.5657]
[1736388221337,10.72246967,197.99,197.94,2.5265]
[1736388221629,10.72246967,197.99,197.93,1.5657]
[1736388223235,10.72246967,197.99,197.95,2.5264]
[1736388225641,10.72246967,197.99,197.93,1.5657]
[1736388226036,7.84246967,197.97,197.9,1.5314]
[1736388226239,2.5265,197.96,197.9,1.5314]
[1736388226939,2.5265,197.96,197.92,2.5267]
[1736388227238,2.5265,197.96,197.9,1.5314]
[1736388227631,10.36866967,197.97,197.93,2.5267]
[1736388230448,10.72246967,197.99,197.92,7.84246967]
[1736388231355,10.72246967,197.99,197.96,2.5263]
[1736388233446,2.5261,197.98,197.94,2.5265]
[1736388233652,7.84246967,197.97,197.94,2.5265]
[1736388233851,7.84246967,197.97,197.9,9.37386967]
[1736388234042,7.84246967,197.95,197.9,1.5314]
[1736388234242,7.84246967,197.93,197.88,1.5123]
[1736388234442,10.36946967,197.91,197.87,9.75064066]
[1736388234846,7.84246967,197.91,197.87,7.22314066]
[1736388235351,7.84246967,197.89,197.87,7.22314066]
[1736388235947,7.84246967,197.89,197.87,0.19268]
[1736388236948,7.84246967,197.89,197.86,2.5275]
[1736388240153,7.84246967,197.89,197.87,2.5275]
[1736388242761,10.36946967,197.91,197.87,2.5275]
[1736388244562,7.84246967,197.89,197.87,2.5275]
[1736388251966,2.527,197.91,197.87,2.5275]
[1736388252168,7.84246967,197.9,197.87,2.5275]
[1736388252564,2.527,197.91,197.87,2.5275]
[1736388252760,2.88,197.94,197.85,7.84246967]
[1736388252968,7.84246967,197.95,197.89,7.84246967]
[1736388253270,7.84246967,197.97,197.95,2.5264]
[1736388258665,7.84246967,197.97,197.91,3.0246]
[1736388259673,7.84246967,197.95,197.92,2.5268]
[1736388260171,7.84246967,197.97,197.89,7.84246967]
[1736388261071,7.84246967,197.97,197.95,2.5265]
[1736388262975,10.72246967,197.99,197.96,2.5263]
[1736388263171,10.72246967,197.99,197.93,7.84246967]
[1736388263874,10.72246967,197.99,197.96,2.5262]
[1736388264072,7.84246967,198.01,197.95,7.84246967]
[1736388264475,7.84246967,198.01,197.95,10.72246967]
[1736388265174,7.84246967,198.01,197.98,2.526]
[1736388266277,7.84246967,198.01,197.95,10.72246967]
[1736388266873,7.84246967,198.01,197.96,2.5262]
[1736388267073,7.84246967,198.01,197.95,2.88]
[1736388267470,7.84246967,198.01,197.92,2.8969]
[1736388267676,7.84246967,197.97,197.92,2.8969]
[1736388268072,7.84246967,197.97,197.94,2.5265]
[1736388269075,7.84246967,197.97,197.95,2.5264]
[1736388269278,7.84246967,197.97,197.92,10.73936967]
[1736388269679,7.84246967,197.97,197.96,2.5263]
[1736388271377,7.84246967,197.99,197.96,2.5263]
[1736388276085,2.5259,198.0,197.96,2.5263]
[1736388276284,7.84246967,197.98,197.96,2.5263]
[1736388277286,10.36836967,198.0,197.96,2.5263]
[1736388284397,2.5261,197.99,197.92,10.73936967]
[1736388284607,7.84246967,197.98,197.92,2.8969]
[1736388285099,2.5262,197.97,197.94,2.5266]
[1736388285907,10.36856967,197.98,197.94,2.5266]
[1736388286201,7.84246967,197.98,197.95,2.5265]
[1736388288706,7.84246967,197.98,197.92,10.73936967]
[1736388289007,10.36856967,197.98,197.94,2.5266]
[1736388290702,7.84246967,197.98,197.95,2.5264]
[1736388295213,2.88,198.0,197.92,10.73936967]
[1736388295413,5.4057,198.02,197.92,10.73936967]
[1736388295613,7.84246967,198.01,197.92,10.73936967]
[1736388296006,7.84246967,198.01,197.98,2.5261]
[1736388296814,10.36816967,198.01,197.98,2.5261]
[1736388298317,7.84246967,197.99,197.92,10.73936967]
[1736388298517,10.36846967,197.99,197.95,2.5264]
[1736388298712,7.84246967,197.99,197.92,2.8969]
[1736388300315,7.84246967,197.97,197.88,28.12184264]
[1736388300509,7.84246967,197.93,197.88,28.12184264]
[1736388300712,7.84246967,197.91,197.88,28.12184264]
[1736388300912,7.84246967,197.89,197.88,28.12184264]
[1736388301113,10.36966967,197.89,197.88,28.12184264]
[1736388301309,10.36966967,197.89,197.87,0.19532]
[1736388301818,2.5274,197.88,197.87,0.19532]
[1736388302111,7.84246967,197.89,197.78,29.58124264]
[1736388302317,7.84246967,197.82,197.79,2.5285]
[1736388302520,7.84246967,197.82,197.78,28.12184264]
[1736388302718,7.84246967,197.8,197.78,28.12184264]
[1736388303422,7.84246967,197.8,197.77,2.5288]
[1736388305020,7.84246967,197.8,197.75,10.77686967]
[1736388305219,7.84246967,197.82,197.75,10.77686967]
[1736388305823,7.84246967,197.82,197.81,2.5283]
[1736388310817,7.84246967,197.84,197.82,2.528]
[1736388313128,2.88,197.89,197.83,7.84246967]
[1736388313329,7.84246967,197.89,197.83,7.84246967]
[1736388315030,7.84246967,197.89,197.86,2.5276]
[1736388317035,7.84246967,197.89,197.87,2.5274]
[1736388318333,7.84246967,197.89,197.83,7.84246967]
[1736388319832,7.84246967,197.91,197.83,7.84246967]
[1736388320024,7.84246967,197.91,197.84,3.0445]
[1736388321131,5.4069,197.92,197.84,3.0445]
[1736388321132,7.84246967,197.89,197.84,3.0445]
[1736388322133,7.84246967,197.89,197.87,2.5274]
[1736388322434,7.84246967,197.91,197.84,3.0445]
[1736388322834,7.84246967,197.91,197.9,2.5271]
[1736388324338,7.84246967,197.93,197.85,7.84246967]
[1736388325134,7.84246967,197.93,197.91,2.5269]
[1736388325537,81.7,197.96,197.85,7.84246967]
[1736388325838,7.84246967,197.93,197.85,7.84246967]
[1736388327337,7.84246967,197.93,197.9,2.527]
[1736388330139,7.84246967,197.93,197.91,2.527]
[1736388331636,7.84246967,197.93,197.9,2.5271]
[1736388333240,7.84246967,197.91,197.85,7.84246967]
[1736388334145,7.84246967,197.91,197.89,2.5272]
[1736388340055,7.84246967,197.91,197.9,2.5271]
[1736388340254,7.84246967,197.93,197.9,2.5271]
[1736388342756,7.84246967,197.91,197.9,2.5271]
[1736388343053,7.84246967,197.91,197.86,2.5276]
[1736388343353,10.36976967,197.89,197.86,2.5276]
[1736388343554,10.36976967,197.89,197.84,3.0445]
[1736388343756,10.36976967,197.89,197.85,2.5277]
[1736388344857,7.84246967,197.89,197.84,3.0445]
[1736388345757,7.84246967,197.89,197.86,2.5275]
[1736388362864,2.5271,197.9,197.87,2.5274]
[1736388363069,7.84246967,197.9,197.87,2.5274]
[1736388364772,7.84246967,197.9,197.84,3.0445]
[1736388364773,7.84246967,197.9,197.88,2.5274]
[1736388365670,7.84246967,197.9,197.84,3.0445]
[1736388365875,7.84246967,197.9,197.87,2.5275]
[1736388365876,10.36966967,197.9,197.87,2.5275]
[1736388366971,7.84246967,197.88,197.84,3.0445]
[1736388367172,7.84246967,197.86,197.8,50.74145163]
[1736388368076,10.37006967,197.86,197.82,2.528]
[1736388369876,2.5279,197.84,197.8,53.26975163]
[1736388370278,10.37036967,197.84,197.8,53.26975163]
[1736388377185,7.84246967,197.86,197.8,58.5839213]
[1736388377681,10.37006967,197.86,197.82,2.5281]
[1736388377882,7.84246967,197.86,197.8,50.74145163]
[1736388378285,7.84246967,197.84,197.8,50.74145163]
[1736388378583,7.84246967,197.82,197.76,1.5726]
[1736388378780,7.84246967,197.8,197.76,1.5726]
[1736388379176,2.5283,197.81,197.78,2.5286]
[1736388379480,10.72246967,197.82,197.77,7.84246967]
[1736388379676,2.88,197.82,197.77,7.84246967]
[1736388380078,2.88,197.82,197.78,2.5286]
[1736388380382,2.88,197.82,197.77,7.84246967]
[1736388380683,2.88,197.82,197.76,1.5726]
[1736388380881,2.88,197.82,197.76,9.41506967]
[1736388382179,2.88,197.82,197.78,2.5285]
[1736388387588,2.88,197.82,197.76,9.41506967]
[1736388387787,2.88,197.82,197.79,2.5285]
[1736388388893,2.88,197.82,197.78,2.5286]
[1736388389690,5.4082,197.82,197.78,2.5286]
[1736388390091,2.5285,197.79,197.76,1.5726]
[1736388390289,7.84246967,197.79,197.72,10.74586967]
[1736388391191,7.84246967,197.79,197.74,2.5292]
[1736388392396,10.37106967,197.79,197.74,2.5292]
[1736388392594,7.84246967,197.79,197.74,2.5292]
[1736388392893,7.84246967,197.75,197.67,7.03046066]
[1736388393185,2.88,197.74,197.69,2.5298]
[1736388393593,5.4092,197.74,197.69,2.5298]
[1736388394095,5.4092,197.74,197.7,2.5296]
[1736388395093,2.88,197.74,197.7,2.5296]
[1736388395993,2.5293,197.73,197.68,2.5298]
[1736388396391,10.37176967,197.73,197.68,2.5298]
[1736388396593,10.37176967,197.73,197.69,2.5298]
[1736388397296,7.84246967,197.73,197.7,2.5296]
[1736388397697,10.37146967,197.75,197.7,2.5296]
[1736388397998,2.88,197.74,197.71,2.5294]
[1736388398396,7.84246967,197.73,197.67,7.84246967]
[1736388398597,2.88,197.74,197.67,7.84246967]
[1736388399299,2.88,197.74,197.69,7.84246967]
[1736388399698,10.72246967,197.74,197.69,7.84246967]
[1736388400098,10.72246967,197.74,197.71,2.5295]
[1736388400400,2.5294,197.73,197.66,4.4763]
[1736388400590,2.5294,197.73,197.68,2.5299]
[1736388401196,7.84246967,197.72,197.68,2.5299]
[1736388401400,10.37196967,197.72,197.67,2.53]
[1736388402202,10.37196967,197.72,197.68,2.5299]
[1736388402503,7.84246967,197.7,197.66,4.4763]
[1736388402691,7.84246967,197.68,197.62,2.5307]
[1736388402891,7.84246967,197.65,197.6,28.12184264]
[1736388403099,7.84246967,197.65,197.58,10.15156066]
[1736388403396,7.84246967,197.63,197.58,10.15156066]
[1736388403899,7.84246967,197.65,197.58,17.99403033]
[1736388404199,7.84246967,197.65,197.58,10.96356967]
[1736388404699,4.89233368,197.76,197.6,7.84246967]
[1736388404895,7.84246967,197.68,197.6,7.84246967]
[1736388405298,7.84246967,197.66,197.63,2.5305]
[1736388406196,7.84246967,197.66,197.6,7.84246967]
[1736388406397,7.84246967,197.66,197.64,2.5304]
[1736388406899,7.84246967,197.66,197.58,3.1211]
[1736388407101,7.84246967,197.63,197.58,3.1211]
[1736388407296,7.84246967,197.65,197.62,2.5307]
[1736388408209,7.84246967,197.65,197.6,2.5309]
[1736388408508,7.84246967,197.61,197.49,7.03046066]
[1736388408802,7.84246967,197.59,197.52,7.84246967]
[1736388408997,7.84246967,197.59,197.53,193.5317]
[1736388409200,7.84246967,197.59,197.53,191.0]
[1736388409500,7.84246967,197.59,197.54,2.5316]
[1736388410004,10.74246967,197.61,197.54,7.84246967]
[1736388410198,7.84246967,197.59,197.54,7.84246967]
[1736388410394,7.84246967,197.59,197.53,191.0]
[1736388410596,7.84246967,197.57,197.51,1.443]
[1736388411198,2.9,197.61,197.51,9.28546967]
[1736388411394,7.84246967,197.59,197.51,9.28546967]
[1736388412203,7.84246967,197.59,197.55,2.5315]
[1736388412805,7.84246967,197.59,197.53,2.5318]
[1736388413011,4.89233368,197.76,197.53,7.84246967]
[1736388413203,7.84246967,197.62,197.55,7.84246967]
[1736388413403,10.74246967,197.62,197.58,2.5312]
[1736388413602,7.84246967,197.62,197.57,7.84246967]
[1736388413906,7.84246967,197.62,197.55,2.5315]
[1736388414107,7.84246967,197.59,197.53,7.84246967]
[1736388414304,7.84246967,197.59,197.51,1.443]
[1736388414608,7.84246967,197.59,197.51,9.28546967]
[1736388415307,7.84246967,197.59,197.55,2.5315]
[1736388416104,7.84246967,197.59,197.54,2.5317]
[1736388416305,7.84246967,197.57,197.51,1.443]
[1736388416505,10.76246967,197.57,197.51,1.443]
[1736388416906,7.84246967,197.55,197.51,1.443]
[1736388417306,7.84246967,197.53,197.51,1.443]
[1736388417603,7.84246967,197.53,197.45,1.589]
[1736388417798,7.84246967,197.5,197.44,191.0]
[1736388418002,7.84246967,197.46,197.42,7.03046066]
[1736388418309,10.37556967,197.44,197.37,140.60921321]
[1736388418508,7.84246967,197.41,197.37,140.60921321]
[1736388418816,3.1,197.4,197.32,84.36552793]
[1736388419005,10.96246967,197.39,197.32,86.90002793]
[1736388419204,3.12,197.39,197.32,92.2079976]
[1736388419401,3.12,197.39,197.34,7.84246967]
[1736388419604,10.96246967,197.39,197.34,2.5342]
[1736388419905,3.12,197.39,197.33,7.84246967]
[1736388420106,7.84246967,197.44,197.34,3.12]
[1736388420314,7.84246967,197.44,197.37,7.84246967]
[1736388420708,3.12,197.56,197.39,7.84246967]
[1736388420913,7.84246967,197.47,197.4,3.12]
[1736388421216,2.5322,197.51,197.44,7.84246967]
[1736388421404,14.84504855,197.51,197.41,4.6078]
[1736388421607,2.5322,197.51,197.41,4.6078]
[1736388421812,4.89843569,197.53,197.43,2.5331]
[1736388422414,4.89843569,197.53,197.41,4.6078]
[1736388422415,4.89843569,197.53,197.42,12.31284855]
[1736388422919,4.89843569,197.53,197.45,2.5328]
[1736388423109,4.89843569,197.53,197.42,12.31284855]
[1736388423310,4.89843569,197.53,197.43,3.24]
[1736388423506,7.43033569,197.53,197.46,2.5327]
[1736388423711,12.31284855,197.47,197.3,191.0]
[1736388423915,12.31284855,197.4,197.31,2.45529617]
[1736388424109,12.31284855,197.4,197.31,1.5245]
[1736388424415,12.31284855,197.37,197.27,1.5278]
[1736388424717,12.31284855,197.37,197.27,3.0523]
[1736388424906,2.534,197.36,197.28,2.535]
[1736388425105,4.24,197.42,197.27,3.0523]
[1736388425106,12.31284855,197.41,197.27,15.36514855]
[1736388425713,12.31284855,197.41,197.3,12.31284855]
[1736388425913,14.84584855,197.44,197.35,2.534]
[1736388426115,16.55284855,197.47,197.33,12.31284855]
[1736388426315,16.55284855,197.47,197.36,12.31284855]
[1736388426516,19.08544855,197.47,197.39,2.5336]
[1736388426813,2.5326,197.47,197.39,2.5336]
[1736388427317,21.45128424,197.53,197.39,12.31284855]
[1736388428116,12.31284855,197.5,197.36,12.31284855]
[1736388428412,12.31284855,197.47,197.35,195.6751]